{"text_format":"1","workbook":"xlsx","n_sheets":4,"sheets":["instructions","checklist situation actuelle","aperçu - lancement actions","aperçu - lancement actions (2)"],"not_rendered":{"charts":10,"images":5,"macros":0,"external_links":0,"defined_names":17,"comments":0,"pivot_tables":0},"unopened":[],"bounds":{"document_bytes":16777216,"sheet_cells":100000,"rows_first":2000,"rows_last":500,"rows_between":2000,"halvings":0,"cell_chars":16384,"cell_head_chars":4096},"cells_cut":0,"cells_raw":0,"read":"whole","date_system":"1900"}

{"sheet":"instructions","index":0,"n_rows":15,"n_cols":1,"rows_kept":15,"cut":false,"hidden":false,"merged":[]}
[]
[]
["Pourquoi cette checklist?"]
["Cette checklist vous aide à réaliser une première évaluation de la politique de sécurité routière dans votre entreprise."]
[]
["Comment vous y prendre?"]
[]
["1/ Remplissez la checklist dans la feuille jaune. Celle-ci évalue la situation actuelle de votre entreprise. "]
["Pour réinitialiser: sélectionnez la colonne H et cliquez sur « Effacer le contenu » pour décocher toutes les cases."]
[]
["2/ Dans la feuille verte, vous verrez ensuite un aperçu de la situation initiale et les potentiels points d'amélioration dans votre entreprise."]
["Cette feuille a été prévue de façon à ce que vous puissiez imprimer tous les éléments sous la forme d’une note pratique."]
[]
["NB : La présente checklist a été développée par la VSV (Fondation flamande en matière de transport et de mobilité) et traduite en français par Ethias. "]
["Vous souhaitez en savoir plus sur les projets de la VSV : cliquez ici"]

{"sheet":"checklist situation actuelle","index":1,"n_rows":92,"n_cols":7,"rows_kept":92,"cut":false,"hidden":false,"merged":[[34,8,39,11]]}
["Renseignements - Nous divisons la politique de sécurité routière d’une entreprise en trois volets: "]
["Volet 1 - disponibilité des données "]
["Volet 2  - facteurs de risques "]
["Volet 3  - vision et mesures existantes"]
[" Pour chaque volet, nous posons un certain nombre de questions. Donnez la réponse la plus adaptée pour chaque question."]
[]
["VOLET 1 - DISPONIBILITÉ DES DONNÉES"]
["D1 - disponibilité des données",null,"description","oui","non","je ne sais pas","N/A"]
[null,"D1.1 chiffres des accidents de la route","Votre entreprise dispose-t-elle d’une banque de données reprenant les chiffres des accidents de la route?"]
[null,"D1.2 moyen de transport","Votre entreprise dispose-t-elle d’une banque de données reprenant des informations sur les moyens de transport qu’utilisent les employés pour le trajet domicile-lieu de travail (y compris les transports en amont et en aval du trajet principal)?"]
[null,"D1.3 infractions routières","Votre entreprise dispose-t-elle d’une banque de données reprenant les amendes pour infractions routières (excès de vitesse et autres)? "]
[null,"D1.4 déplacements de service","Votre entreprise dispose-t-elle d’un aperçu du nombre de déplacements de service, avec répartition par moyen de transport (vélo, transport en commun, voiture)?"]
[null,"D1.5 itinéraires des cyclistes - domicile-lieu de travail","Votre entreprise connait-elle les itinériares empruntés par les cyclistes sur leur trajet domicile-lieu de travail?"]
[null,"D1.6 itinéraires des cyclistes - déplacements de service","Votre entreprise connait-elle les itinéraires empruntés par les cyclistes pour les déplacements de service?"]
[null,"D1.7 port du casque pour cyclistes","Votre entreprise connait-elle le pourcentage d’employés qui portent toujours un casque lorsqu’ils se déplacent à vélo? "]
[null,"D1.8 éclairage vélo ","Votre entreprise connait-elle le pourcentage d’employés qui possèdent un éclairage de vélo fonctionnel? "]
[null,"D1.9 visibilité cyclistes","Votre entreprise connait-elle le pourcentage d’employés qui portent toujours, ou en cas de visibilité réduite, un équipement fluorescent lorsqu’ils se déplacent à vélo? "]
[null,"D1.10 port de la ceinture de sécurité automobilistes","Votre entreprise connait-elle le pourcentage d’employés qui portent la ceinture de sécurité à l’avant et à l’arrière du véhicule? "]
[null,"D1.11 port du casque motocyclistes et cyclomotoristes","Votre entreprise connait-elle le pourcentage d’employés qui portent toujours un casque lorsqu’ils se déplacent en moto ou en cyclomoteur? "]
[]
["VOLET  2 - FACTEURS DE RISQUE"]
["R1 - facteurs de risque général",null,null,"oui","non","je ne sais pas","N/A"]
[null,"R1.1 endroits dangereux","Y a-t-il des endroits dangereux aux abords de votre entreprise où un ou plusieurs accidents ont déjà eu lieu dans le passé? "]
["R2- facteurs de risque piétons",null,null,"oui","non","je ne sais pas","N/A"]
[null,"R2.1 endroits dangereux aux abords de l’entreprise","Y a-t-il des endroits dangereux aux abords de votre entreprise qui peuvent constituer une situation difficile pour les piétons (carrefours dangereux, absence d’infrastructure...)? "]
[null,"R2.1 endroits dangereux sur le domaine privé de l’entreprise","Y a-t-il des endroits dangereux sur le domaine privé de votre entreprise qui peuvent constituer une situation difficile pour les piétons (carrefours dangereux, absence d’infrastructure...)? "]
[null,"R2.2 endroits dangereux sur trajet arrêt transport en commun","Y a-t-il des endroits dangereux pour les piétons sur le trajet entre l’arrêt des transports en commun et le site de l’entreprise?"]
["R3 - facteurs de risque cyclistes",null,null,"oui","non","Je ne sais pas","N/A"]
[null,"R3.1 endroits dangereux sur les itinéraires des cyclistes","Y a-t-il des endroits dangereux sur les itinéraires empruntés par les cyclistes?"]
[null,"R3.2 endroits dangereux sur itinéraires des cyclistes - déplacements de service","Y a-t-il des endroits dangereux  sur les parcours fréquemment empruntés par des cyclistes lors des déplacements de service?"]
[null,"R3.3 endroits dangereux sur le domaine privé","Y a-t-il des endroits dangereux sur le domaine privé de l’entreprise où les cyclistes pourraient se retrouver dans des situations difficiles?"]
[null,"R3.4 port du casque cyclistes","Le port du casque se limite-t-il uniquement à une minorité de travailleurs cyclistes?"]
[null,"R3.5 visibilité des cyclistes","Le port d’un équipement fluorescent se limite-t-il uniquement à une minorité de travailleurs cyclistes?"]
[null,"R3.5 éclairage vélo","Y a-t-il des employés avec un éclairage de vélo défaillant?"]
[null,"R3.7 vélo de course ou vélo électrique","Y a-t-il des employés qui se rendent au travail avec un vélo de course ou un vélo électrique?"]
["R4- facteurs de risque motocyclistes et cyclomoteurs",null,null,"oui","non","je ne sais pas","N/A"]
[null,"R4.1 utilisation d’une moto ou d’un cyclomoteur","Y a-t-il des employés qui utilisent une moto ou un cyclomoteur pour le trajet domicile-lieu de travail ou pour les déplacements de service? "]
["R5- facteurs de risque automobilistes",null,null,"oui","non","je ne sais pas","N/A"]
[null,"R5.1 excès de vitesse","Des membres du personnel ont-ils reçu 2 amendes ou plus pour excès de vitesse sur l’année écoulée? "]
[null,"R5.2 autres infractions","Hormis les excès de vitesse, y a-t-il d’autres infractions fréquentes (p. ex. GSM au volant, feu rouge brûlé...)?"]
[null,"R5.3 conduite à risque","Avez-vous connaissance de  membres du personnel qui roulent souvent trop vite ou ont une conduite à risque?"]
[null,"R5.4 port de la ceinture","Avez-vous, parmi vos employés, des automobilistes ou des passagers qui parfois ne portent pas la ceinture de sécurité? "]
[null,"R5.5 conduite sous l’influence de l’alcool","Avez-vous connaissance de membres du personnel qui roulent parfois sous l’influence de l’alcool?"]
[null,"R5.6 conduite sous l’influence de drogues ou de médicaments","Avez-vous connaissance de membres du personnel qui roulent parfois sous l’influence de drogues ou de médicaments?"]
[null,"R5.7 utilisation GSM/smartphone","Avez-vous connaissance de membres du personnel qui utilisent parfois leur GSM au volant (appel, sms...)?"]
[null,"R5.8 attente d’utilisation GSM/smartphone","Attendez-vous de vos travailleurs qu’ils soient en permanence joignables même au volant et/ou qu’ils effectuent des appels téléphoniques durant les trajets (avec un kit mains libres)?"]
[null,"R5.9 longs trajets domicile-lieu de travail","Y a-t-il des membres du personnel qui doivent faire de très longs trajets domicile-lieu de travail en voiture?"]
[null,"R5.10 déplacements de service fréquents","Dans votre entreprise, les déplacements de service sont-ils fréquemment effectués avec une voiture?"]
[null,"R5.11 longs déplacements de service","Les employés de votre entreprise doivient-ils régulièrement effectuer de longs déplacements de service en voiture?"]
[null,"5.12 déplacements professionnels matinaux ou tardifs","Y a-t-il dans votre entreprise des déplacements de service effectués à des heures très matinales ou très tardives?"]
["R6- facteurs de risque transport de marchandises",null,null,"oui","non","je ne sais pas","N/A"]
[null,"R6.1 livraisons fréquentes par l’entreprise","Votre entreprise effectue-t-elle fréquemment des livraisons de marchandises?"]
[null,"R6.2 livraisons fréquentes à l’entreprise","Votre entreprise reçoit-elle souvent des livraisons?"]
[null,"R6.3 itinéraires poids lourds","Les poids lourds de votre entreprise ou de vos fournisseurs empruntent-ils des routes qui sont moins adaptées pour le trafic de camion parce qu’elles sont aussi utilisées par des usagers faibles? "]
[]
["VOLET 3 - VISION ET MESURES EXISTANTES"]
["M1 - vision et stratégie",null,null,"oui","non","je ne sais pas","N/A"]
[null,"M1.1 plan de sécurité routière","Votre entreprise dispose-t-elle d’une politique ou d’un plan de sécurité routière, intégrée ou non dans le Plan global de prévention?"]
[null,"M1.2 culture de sécurité routière","Votre entreprise possède-t-elle une culture de la sécurité routière? "]
[null,"M1.3 Charte européenne de la sécurité routière","Votre entreprise a-t-elle signé la Charte européenne de la sécurité routière?"]
[null,"M1.4 familiarité avec la charte et la politique","Les employés sont-ils au courant d’éventuels codes de conduite pour une conduite en toute sécurité?"]
[null,"M1.5 éviter les déplacements","Votre entreprise a-t-elle une politique pour éviter les déplacements? Réfléchissez-vous à l’utilité des déplacements et à l’utilisation de nouvelles technologies (téléconférence, télétravail...)?"]
[null,"M1.6 sécurité sur le site privé","Votre entreprise s’intéresse-t-elle à la sécurité routière sur son site privé?"]
[null,"M1.7 utilisation des transports en commun","Votre entreprise encourage-t-elle les trajets en transports en commun?"]
["M2 - mesures piétons",null,null,"oui","non","je ne sais pas","N/A"]
[null,"M2.1 voies pour piétons","Votre entreprise est-elle attentive à la sécurité routière sur d’importantes voies piétonnes, par exemple entre les transports en commun et votre entreprise ou bien sur le site même?"]
[null,"M2.2 comportement piétons","Votre entreprise est-elle attentive aux comportements des piétons concernant, par exemple, les voies à suivre ou bien la visibilité?"]
["M3 - mesures vélo",null,null,"oui","non","je ne sais pas","N/A"]
[null,"M3.1 contrôle vélo","Votre entreprise a-t-elle contrôlé l’état des vélos sur l’année écoulée?"]
[null,"M3.2 accessoires cyclistes","Votre entreprise fournit-elle des accessoires cyclistes pour augmenter la sécurité routière: un casque et des accessoires fluorescents?"]
[null,"M3.3 parking vélo","Votre entreprise dispose-t-elle d'un parking pour vélos en bon état et sécurisé?"]
[null,"M3.4 conseils itinéraires cyclistes","Votre entreprise conseille-t-elle ses employés cyclistes sur les itinéraires à emprunter?"]
[null,"M3.5 formation conduite cycliste sûre","Votre entreprise a-t-elle organisé sur l’année écoulée un cours pour se déplacer en toute sécurité en vélo à l’attention de ses employés cyclistes?"]
["M4 - mesures motos et cyclomoteurs",null,null,"oui","non","je ne sais pas","N/A"]
[null,"M4.1 cours de conduite défensive","Votre entreprise a-t-elle organisé sur l’année écoulée un cours de conduite défensive pour les motocyclistes?"]
[null,"M4.2 Port du casque ","Votre entreprise encourage-t-elle le port du casque et l’utilisation d’un casque intégral (qui recouvre totalement la tête et le visage)?"]
[null,"M4.3 équipement et vêtements","Votre entreprise est-elle attentive à l’équipement et aux vêtements des motocyclistes et cyclomotoristes? "]
["M5 - mesures voiture",null,null,"oui","non","je ne sais pas","N/A"]
[null,"M5.1 code de conduite","Votre entreprise dispose-t-elle d’un code de conduite pour les automobilistes (utilisation GSM/smartphone, vitesse, port de la ceinture, consommation d’alcool...)?"]
[null,"M5.2 suivi nouveaux collaborateurs","Suivez-vous de près la conduite des nouveaux collaborateurs?"]
[null,"M5.3 kits mains libres","Les voitures de société ou de service sont-elles équipées de kit mains libres?"]
[null,"M5.4 responsabilisation","Y-a-il une responsabilisation des collaborateurs qui commettent une infraction routière?"]
[null,"M5.5 fêtes d’entreprise","Votre entreprise est-elle attentive à la problématique de la conduite sous influence après une fête ou un lunch d’entreprise?"]
[null,"M5.6 gestion de flotte (fleet management)","Votre entreprise fait-elle attention à la sécurité routière pour la gestion de flotte (choix des véhicules, entretien, pneus hiver, équipement de sécurité passif)"]
[null,"M5.7 cours de conduite défensive","Votre entreprise a-t-elle organisé au cours de l’année écoulée un cours de conduite défensive pour les automobilistes?"]
[null,"M5.8 nuitée","Votre entreprise est-elle prête à payer la nuitée au collaborateur au lieu de lui imposer un long trajet à une heure tardive pour rentrer chez lui? "]
["M6 - mesures transports de marchandises",null,null,"oui","non","je ne sais pas","N/A"]
[null,"M6.1 code de conduite chauffeurs camion","Votre entreprise dispose-t-elle d’un code de conduite pour les chauffeurs de camion?"]
[null,"M6.2 outils techniques","Les camions sont-ils équipés des dernières avancées techniques pour améliorer la sécurité?"]
[null,"M6.3 planification des trajets","Votre entreprise fait-elle en sorte de ne pas surcharger la planification des trajets?"]
[null,"M6.4 Charte de sécurité des poids lourds","Votre entreprise a-t-elle signé la Charte de sécurité des poids lourds? (www.truckveilig.be/fr/)"]
[null,"M6.5 temps de conduite et de repos","Les chauffeurs de poids lourds sont-ils encouragés à respecter les temps de conduite et de repos? "]

{"sheet":"aperçu - lancement actions","index":2,"n_rows":60,"n_cols":29,"rows_kept":60,"cut":false,"hidden":false,"merged":[[54,10,54,16],[43,10,43,16],[41,10,41,16],[42,10,42,17],[44,10,44,16],[49,10,49,17],[50,10,50,17],[51,10,51,17],[53,10,53,16],[26,10,26,16],[31,10,31,16],[32,10,32,16],[24,10,24,16],[28,10,28,16],[27,10,27,16],[30,1,30,6],[28,1,28,6],[27,1,27,6],[48,10,48,17],[29,1,29,6],[33,10,33,16],[30,10,30,16],[34,1,34,6],[45,10,45,16],[46,10,46,16],[47,10,47,17],[40,10,40,16],[38,10,38,16],[35,10,35,16],[34,10,34,16],[25,1,25,6],[59,21,59,27],[52,21,52,27],[55,21,55,27],[57,21,57,27],[58,21,58,27],[53,21,53,28],[56,21,56,28],[46,21,46,27],[47,21,47,27],[26,1,26,6],[55,10,55,17],[36,10,36,16],[33,1,33,6],[32,1,32,6],[31,1,31,6],[49,21,49,27],[50,21,50,27],[51,21,51,28],[48,21,48,27],[38,21,38,27],[39,21,39,27],[40,21,40,27],[42,21,42,27],[44,21,44,27],[43,21,43,28],[24,21,24,28],[1,1,1,6],[1,10,1,17],[1,21,1,28],[21,1,21,6],[21,10,21,17],[21,21,21,28],[23,1,23,5],[24,1,24,6],[25,21,25,27],[26,21,26,27],[27,21,27,27],[37,21,37,28],[28,21,28,27],[29,21,29,27],[30,21,30,27],[33,21,33,27],[36,21,36,27],[32,21,32,28]]}
[null,"Collecte de données",null,null,null,null,null,null,null,null,"Facteurs de risque",null,null,null,null,null,null,null,null,null,null,"Mesures"]
[null,"Vous retrouvez ci-dessous un aperçu de la collecte de données en matière de sécurité routière dans votre entreprise",null,null,null,null,null,null,null,null,"Vous retrouvez ci-dessous un aperçu de la présence ou de l’absence de facteurs de risque concernant la sécurité routière pour les différents moyens de transport dans votre entreprise",null,null,null,null,null,null,null,null,null,null,"Vous retrouvez ci-dessous un aperçu des mesures de sécurité routière qui ont été prises dans votre entreprises et celles qui doivent encore être prises."]
["Légende",null,null,null,null,null,null,null,null,"Légende",null,"gén.","piétons","vélo","moto / cyclo moteur","voiture","camion","total",null,null,"Légende",null,"vision","piétons","vélo","moto / cyclo moteur","voiture","camion","total"]
["■","est collecté",{"$f":"COUNTIF('checklist situation actuelle'!H$9:H$19,1)","v":0},null,null,null,1,null,null,"■","présent",{"$f":"COUNTIF('checklist situation actuelle'!H$23:H$23,$G4)","v":0},{"$f":"COUNTIF('checklist situation actuelle'!H$25:H$27,$G4)","v":0},{"$f":"COUNTIF('checklist situation actuelle'!H$29:H$35,$G4)","v":0},{"$f":"COUNTIF('checklist situation actuelle'!H$37:H$37,$G4)","v":0},{"$f":"COUNTIF('checklist situation actuelle'!H$39:H$50,$G4)","v":0},{"$f":"COUNTIF('checklist situation actuelle'!H$52:H$54,$G4)","v":0},{"$f":"SUM(L4:Q4)","v":0},null,null,"■","présent",{"$f":"COUNTIF('checklist situation actuelle'!$H$58:$H$64,$G4)","v":0},{"$f":"COUNTIF('checklist situation actuelle'!$H$66:$H$67,$G4)","v":0},{"$f":"COUNTIF('checklist situation actuelle'!$H$69:$H$73,$G4)","v":0},{"$f":"COUNTIF('checklist situation actuelle'!$H$75:$H$77,$G4)","v":0},{"$f":"COUNTIF('checklist situation actuelle'!$H$79:$H$86,$G4)","v":0},{"$f":"COUNTIF('checklist situation actuelle'!$H$88:$H$92,$G4)","v":0},{"$f":"SUM(W4:AB4)","v":0}]
["□","pas encore collecté",{"$f":"COUNTIF('checklist situation actuelle'!H$9:H$19,2)","v":0},null,null,null,2,null,null,"□","absent",{"$f":"COUNTIF('checklist situation actuelle'!H$23:H$23,$G5)","v":0},{"$f":"COUNTIF('checklist situation actuelle'!H$25:H$27,$G5)","v":0},{"$f":"COUNTIF('checklist situation actuelle'!H$29:H$35,$G5)","v":0},{"$f":"COUNTIF('checklist situation actuelle'!H$37:H$37,$G5)","v":0},{"$f":"COUNTIF('checklist situation actuelle'!H$39:H$50,$G5)","v":0},{"$f":"COUNTIF('checklist situation actuelle'!H$52:H$54,$G5)","v":0},{"$f":"SUM(L5:Q5)","v":0},null,null,"□","absent",{"$f":"COUNTIF('checklist situation actuelle'!$H$58:$H$64,$G5)","v":0},{"$f":"COUNTIF('checklist situation actuelle'!$H$66:$H$67,$G5)","v":0},{"$f":"COUNTIF('checklist situation actuelle'!$H$69:$H$73,$G5)","v":0},{"$f":"COUNTIF('checklist situation actuelle'!$H$75:$H$77,$G5)","v":0},{"$f":"COUNTIF('checklist situation actuelle'!$H$79:$H$86,$G5)","v":0},{"$f":"COUNTIF('checklist situation actuelle'!$H$88:$H$92,$G5)","v":0},{"$f":"SUM(W5:AB5)","v":0}]
["?","je ne sais pas",{"$f":"COUNTIF('checklist situation actuelle'!H$9:H$19,3)","v":0},null,null,null,3,null,null,"?","je ne sais pas",{"$f":"COUNTIF('checklist situation actuelle'!H$23:H$23,$G6)","v":0},{"$f":"COUNTIF('checklist situation actuelle'!H$25:H$27,$G6)","v":0},{"$f":"COUNTIF('checklist situation actuelle'!H$29:H$35,$G6)","v":0},{"$f":"COUNTIF('checklist situation actuelle'!H$37:H$37,$G6)","v":0},{"$f":"COUNTIF('checklist situation actuelle'!H$39:H$50,$G6)","v":0},{"$f":"COUNTIF('checklist situation actuelle'!H$52:H$54,$G6)","v":0},{"$f":"SUM(L6:Q6)","v":0},null,null,"?","je ne sais pas",{"$f":"COUNTIF('checklist situation actuelle'!$H$58:$H$64,$G6)","v":0},{"$f":"COUNTIF('checklist situation actuelle'!$H$66:$H$67,$G6)","v":0},{"$f":"COUNTIF('checklist situation actuelle'!$H$69:$H$73,$G6)","v":0},{"$f":"COUNTIF('checklist situation actuelle'!$H$75:$H$77,$G6)","v":0},{"$f":"COUNTIF('checklist situation actuelle'!$H$79:$H$86,$G6)","v":0},{"$f":"COUNTIF('checklist situation actuelle'!$H$88:$H$92,$G6)","v":0},{"$f":"SUM(W6:AB6)","v":0}]
["/","non complété",{"$f":"11-SUM(C4:C6,C8)","v":11},null,null,null,0,null,null,"/","non complété",{"$f":"1-SUM(L4:L6,L8)","v":1},{"$f":"3-SUM(M4:M6,M8)","v":3},{"$f":"7-SUM(N4:N6,N8)","v":7},{"$f":"1-SUM(O4:O6,O8)","v":1},{"$f":"12-SUM(P4:P6,P8)","v":12},{"$f":"2-SUM(Q4:Q6,Q8)","v":2},{"$f":"26-SUM(R4:R6,R8)","v":26},null,null,"/","non complété",{"$f":"7-SUM(W4:W6,W8)","v":7},{"$f":"2-SUM(X4:X6,X8)","v":2},{"$f":"5-SUM(Y4:Y6,Y8)","v":5},{"$f":"3-SUM(Z4:Z6,Z8)","v":3},{"$f":"8-SUM(AA4:AA6,AA8)","v":8},{"$f":"5-SUM(AB4:AB6,AB8)","v":5},{"$f":"30-SUM(AC4:AC6,AC8)","v":30}]
["x","ne s’applique pas",{"$f":"COUNTIF('checklist situation actuelle'!H$9:H$19,4)","v":0},null,null,null,4,null,null,"x","ne s’applique pas",{"$f":"COUNTIF('checklist situation actuelle'!H$23:H$23,$G8)","v":0},{"$f":"COUNTIF('checklist situation actuelle'!H$25:H$27,$G8)","v":0},{"$f":"COUNTIF('checklist situation actuelle'!H$29:H$35,$G8)","v":0},{"$f":"COUNTIF('checklist situation actuelle'!H$37:H$37,$G8)","v":0},{"$f":"COUNTIF('checklist situation actuelle'!H$39:H$50,$G8)","v":0},{"$f":"COUNTIF('checklist situation actuelle'!H$52:H$54,$G8)","v":0},{"$f":"SUM(L8:Q8)","v":0},null,null,"x","ne s’applique pas",{"$f":"COUNTIF('checklist situation actuelle'!$H$58:$H$64,$G8)","v":0},{"$f":"COUNTIF('checklist situation actuelle'!$H$66:$H$67,$G8)","v":0},{"$f":"COUNTIF('checklist situation actuelle'!$H$69:$H$73,$G8)","v":0},{"$f":"COUNTIF('checklist situation actuelle'!$H$75:$H$77,$G8)","v":0},{"$f":"COUNTIF('checklist situation actuelle'!$H$79:$H$86,$G8)","v":0},{"$f":"COUNTIF('checklist situation actuelle'!$H$88:$H$92,$G8)","v":0},{"$f":"SUM(W8:AB8)","v":0}]
[null,null,null,null,null,null,null,null,null,null,null,"général","piétons","vélo","moto / cyclomoteur","voiture","camion",null,null,null,null,null,"vision","piétons","vélo","moto / cyclomoteur","voiture","camion"]
[]
[]
[]
[]
[]
[]
[]
[]
[]
[]
[]
[]
[null,"Les symboles indiquent les données que votre entreprise doit encore collecter.",null,null,null,null,null,null,null,null,"Les symboles indiquent les facteurs de risque présents dans votre entreprise.",null,null,null,null,null,null,null,null,null,null,"Les symboles indiquent les mesures supplémentaires à prendre dans votre entreprise."]
[]
[null,"Eléments pour lesquels l’entreprise peut collecter des informations",null,null,null,null,null,null,null,"R1 - facteurs de risque général",null,null,null,null,null,null,null,null,null,null,"M1 - vision et stratégie"]
[{"$f":"IF('checklist situation actuelle'!H9=1,\"■\",IF('checklist situation actuelle'!H9=2,\"□\",IF('checklist situation actuelle'!H9=3,\"?\",IF('checklist situation actuelle'!H9=4,\"x\",IF('checklist situation actuelle'!H9=0,\"/\",\"!?\")))))","v":"/"},"Chiffres des accidents de la route ",null,null,null,null,null,null,null,{"$f":"IF('checklist situation actuelle'!H23=1,\"■\",IF('checklist situation actuelle'!H23=2,\"□\",IF('checklist situation actuelle'!H23=3,\"?\",IF('checklist situation actuelle'!H23=4,\"x\",IF('checklist situation actuelle'!H23=0,\"/\",\"!?\")))))","v":"/"},"Endroits dangereux aux abords de l’entreprise",null,null,null,null,null,null,null,null,null,{"$f":"IF('checklist situation actuelle'!H58=1,\"■\",IF('checklist situation actuelle'!H58=2,\"□\",IF('checklist situation actuelle'!H58=3,\"?\",IF('checklist situation actuelle'!H58=4,\"x\",IF('checklist situation actuelle'!H58=0,\"/\",\"!?\")))))","v":"/"},"Réalisation d’une politique ou d’un plan de sécurité routière (éventuellement intégration dans un Plan global de prévention)"]
[{"$f":"IF('checklist situation actuelle'!H10=1,\"■\",IF('checklist situation actuelle'!H10=2,\"□\",IF('checklist situation actuelle'!H10=3,\"?\",IF('checklist situation actuelle'!H10=4,\"x\",IF('checklist situation actuelle'!H10=0,\"/\",\"!?\")))))","v":"/"},"Les moyens de transport utilisés par les employés pour le trajet domicile-lieu de travail (y compris les transports en amont et en aval du trajet)",null,null,null,null,null,null,null,"R2- facteurs de risque piétons",null,null,null,null,null,null,null,null,null,null,{"$f":"IF('checklist situation actuelle'!H59=1,\"■\",IF('checklist situation actuelle'!H59=2,\"□\",IF('checklist situation actuelle'!H59=3,\"?\",IF('checklist situation actuelle'!H59=4,\"x\",IF('checklist situation actuelle'!H59=0,\"/\",\"!?\")))))","v":"/"},"Élaboration d’une culture de la sécurité routière dans l’entreprise (p. ex. règles claires sur l’alcool, vérification éclairage vélo...)"]
[{"$f":"IF('checklist situation actuelle'!H11=1,\"■\",IF('checklist situation actuelle'!H11=2,\"□\",IF('checklist situation actuelle'!H11=3,\"?\",IF('checklist situation actuelle'!H11=4,\"x\",IF('checklist situation actuelle'!H11=0,\"/\",\"!?\")))))","v":"/"},"Amendes pour infractions routières",null,null,null,null,null,null,null,{"$f":"IF('checklist situation actuelle'!H25=1,\"■\",IF('checklist situation actuelle'!H25=2,\"□\",IF('checklist situation actuelle'!H25=3,\"?\",IF('checklist situation actuelle'!H25=4,\"x\",IF('checklist situation actuelle'!H25=0,\"/\",\"!?\")))))","v":"/"},"Endroits dangereux sur le trajet domicile-lieu de travail (en amont, en aval du trajet et/ou sur le trajet principal)",null,null,null,null,null,null,null,null,null,{"$f":"IF('checklist situation actuelle'!H60=1,\"■\",IF('checklist situation actuelle'!H60=2,\"□\",IF('checklist situation actuelle'!H60=3,\"?\",IF('checklist situation actuelle'!H60=4,\"x\",IF('checklist situation actuelle'!H60=0,\"/\",\"!?\")))))","v":"/"},"Signature de la Charte européenne de la sécurité routière"]
[{"$f":"IF('checklist situation actuelle'!H12=1,\"■\",IF('checklist situation actuelle'!H12=2,\"□\",IF('checklist situation actuelle'!H12=3,\"?\",IF('checklist situation actuelle'!H12=4,\"x\",IF('checklist situation actuelle'!H12=0,\"/\",\"!?\")))))","v":"/"},"Nombre de déplacements de service par moyen de transport",null,null,null,null,null,null,null,{"$f":"IF('checklist situation actuelle'!H26=1,\"■\",IF('checklist situation actuelle'!H26=2,\"□\",IF('checklist situation actuelle'!H26=3,\"?\",IF('checklist situation actuelle'!H26=4,\"x\",IF('checklist situation actuelle'!H26=0,\"/\",\"!?\")))))","v":"/"},"Endroits dangereux sur le domaine privé",null,null,null,null,null,null,null,null,null,{"$f":"IF('checklist situation actuelle'!H61=1,\"■\",IF('checklist situation actuelle'!H61=2,\"□\",IF('checklist situation actuelle'!H61=3,\"?\",IF('checklist situation actuelle'!H61=4,\"x\",IF('checklist situation actuelle'!H61=0,\"/\",\"!?\")))))","v":"/"},"Elaboration (et communication) de codes de conduite en matière de conduite sûre"]
[{"$f":"IF('checklist situation actuelle'!H13=1,\"■\",IF('checklist situation actuelle'!H13=2,\"□\",IF('checklist situation actuelle'!H13=3,\"?\",IF('checklist situation actuelle'!H13=4,\"x\",IF('checklist situation actuelle'!H13=0,\"/\",\"!?\")))))","v":"/"},"Itinéraires cyclistes empruntés pour les trajets domicile-lieu de travail",null,null,null,null,null,null,null,{"$f":"IF('checklist situation actuelle'!H27=1,\"■\",IF('checklist situation actuelle'!H27=2,\"□\",IF('checklist situation actuelle'!H27=3,\"?\",IF('checklist situation actuelle'!H27=4,\"x\",IF('checklist situation actuelle'!H27=0,\"/\",\"!?\")))))","v":"/"},"Endroits dangereux sur le chemin pour piétons vers l’arrêt des transports en commun",null,null,null,null,null,null,null,null,null,{"$f":"IF('checklist situation actuelle'!H62=1,\"■\",IF('checklist situation actuelle'!H62=2,\"□\",IF('checklist situation actuelle'!H62=3,\"?\",IF('checklist situation actuelle'!H62=4,\"x\",IF('checklist situation actuelle'!H62=0,\"/\",\"!?\")))))","v":"/"},"Éviter les déplacements si possible (téléconférence, télétravail...)"]
[{"$f":"IF('checklist situation actuelle'!H14=1,\"■\",IF('checklist situation actuelle'!H14=2,\"□\",IF('checklist situation actuelle'!H14=3,\"?\",IF('checklist situation actuelle'!H14=4,\"x\",IF('checklist situation actuelle'!H14=0,\"/\",\"!?\")))))","v":"/"},"Itinéraires cyclistes empruntés pour les déplacements de service ",null,null,null,null,null,null,null,"R3 - facteurs de risque cyclistes",null,null,null,null,null,null,null,null,null,null,{"$f":"IF('checklist situation actuelle'!H63=1,\"■\",IF('checklist situation actuelle'!H63=2,\"□\",IF('checklist situation actuelle'!H63=3,\"?\",IF('checklist situation actuelle'!H63=4,\"x\",IF('checklist situation actuelle'!H63=0,\"/\",\"!?\")))))","v":"/"},"Attention à la sécurité routière sur le site privé"]
[{"$f":"IF('checklist situation actuelle'!H15=1,\"■\",IF('checklist situation actuelle'!H15=2,\"□\",IF('checklist situation actuelle'!H15=3,\"?\",IF('checklist situation actuelle'!H15=4,\"x\",IF('checklist situation actuelle'!H15=0,\"/\",\"!?\")))))","v":"/"},"Port du casque pour les cyclistes",null,null,null,null,null,null,null,{"$f":"IF('checklist situation actuelle'!H29=1,\"■\",IF('checklist situation actuelle'!H29=2,\"□\",IF('checklist situation actuelle'!H29=3,\"?\",IF('checklist situation actuelle'!H29=4,\"x\",IF('checklist situation actuelle'!H29=0,\"/\",\"!?\")))))","v":"/"},"Endroits dangereux sur les itinéraires des cyclistes",null,null,null,null,null,null,null,null,null,{"$f":"IF('checklist situation actuelle'!H64=1,\"■\",IF('checklist situation actuelle'!H64=2,\"□\",IF('checklist situation actuelle'!H64=3,\"?\",IF('checklist situation actuelle'!H64=4,\"x\",IF('checklist situation actuelle'!H64=0,\"/\",\"!?\")))))","v":"/"},"Encourager les transports en commun"]
[{"$f":"IF('checklist situation actuelle'!H16=1,\"■\",IF('checklist situation actuelle'!H16=2,\"□\",IF('checklist situation actuelle'!H16=3,\"?\",IF('checklist situation actuelle'!H16=4,\"x\",IF('checklist situation actuelle'!H16=0,\"/\",\"!?\")))))","v":"/"},"Eclairage en bon état pour les cyclistes",null,null,null,null,null,null,null,{"$f":"IF('checklist situation actuelle'!H30=1,\"■\",IF('checklist situation actuelle'!H30=2,\"□\",IF('checklist situation actuelle'!H30=3,\"?\",IF('checklist situation actuelle'!H30=4,\"x\",IF('checklist situation actuelle'!H30=0,\"/\",\"!?\")))))","v":"/"},"Endroits dangereux sur les itinéraires fréquemment empruntés par les cyclistes pour les déplacements de service",null,null,null,null,null,null,null,null,null,"M2 - mesures piétons"]
[{"$f":"IF('checklist situation actuelle'!H17=1,\"■\",IF('checklist situation actuelle'!H17=2,\"□\",IF('checklist situation actuelle'!H17=3,\"?\",IF('checklist situation actuelle'!H17=4,\"x\",IF('checklist situation actuelle'!H17=0,\"/\",\"!?\")))))","v":"/"},"Accessoires fluorescents pour les cyclistes",null,null,null,null,null,null,null,{"$f":"IF('checklist situation actuelle'!H31=1,\"■\",IF('checklist situation actuelle'!H31=2,\"□\",IF('checklist situation actuelle'!H31=3,\"?\",IF('checklist situation actuelle'!H31=4,\"x\",IF('checklist situation actuelle'!H31=0,\"/\",\"!?\")))))","v":"/"},"Situations dangereuses sur le domaine privé (p. ex. mélange de plusieurs types de trafic)",null,null,null,null,null,null,null,null,null,{"$f":"IF('checklist situation actuelle'!H66=1,\"■\",IF('checklist situation actuelle'!H66=2,\"□\",IF('checklist situation actuelle'!H66=3,\"?\",IF('checklist situation actuelle'!H66=4,\"x\",IF('checklist situation actuelle'!H66=0,\"/\",\"!?\")))))","v":"/"},"Attention à sécurité routière sur les voies piétonnes (p. ex. vers l’arrêt de bus)"]
[{"$f":"IF('checklist situation actuelle'!H18=1,\"■\",IF('checklist situation actuelle'!H18=2,\"□\",IF('checklist situation actuelle'!H18=3,\"?\",IF('checklist situation actuelle'!H18=4,\"x\",IF('checklist situation actuelle'!H18=0,\"/\",\"!?\")))))","v":"/"},"Port de la ceinture pour les automobilistes",null,null,null,null,null,null,null,{"$f":"IF('checklist situation actuelle'!H32=1,\"■\",IF('checklist situation actuelle'!H32=2,\"□\",IF('checklist situation actuelle'!H32=3,\"?\",IF('checklist situation actuelle'!H32=4,\"x\",IF('checklist situation actuelle'!H32=0,\"/\",\"!?\")))))","v":"/"},"Port du casque inexistant ou trop peu fréquent",null,null,null,null,null,null,null,null,null,{"$f":"IF('checklist situation actuelle'!H67=1,\"■\",IF('checklist situation actuelle'!H67=2,\"□\",IF('checklist situation actuelle'!H67=3,\"?\",IF('checklist situation actuelle'!H67=4,\"x\",IF('checklist situation actuelle'!H67=0,\"/\",\"!?\")))))","v":"/"},"Attention au comportement des piétons (p. ex: accent sur la visibilité, utilisation de passages pour piétons, respect du code de la route...)"]
[{"$f":"IF('checklist situation actuelle'!H19=1,\"■\",IF('checklist situation actuelle'!H19=2,\"□\",IF('checklist situation actuelle'!H19=3,\"?\",IF('checklist situation actuelle'!H19=4,\"x\",IF('checklist situation actuelle'!H19=0,\"/\",\"!?\")))))","v":"/"},"Port du casque pour les motocyclistes et cyclomotoristes",null,null,null,null,null,null,null,{"$f":"IF('checklist situation actuelle'!H33=1,\"■\",IF('checklist situation actuelle'!H33=2,\"□\",IF('checklist situation actuelle'!H33=3,\"?\",IF('checklist situation actuelle'!H33=4,\"x\",IF('checklist situation actuelle'!H33=0,\"/\",\"!?\")))))","v":"/"},"Accessoires fluorescents absents ou insuffisants "]
[null,null,null,null,null,null,null,null,null,{"$f":"IF('checklist situation actuelle'!H34=1,\"■\",IF('checklist situation actuelle'!H34=2,\"□\",IF('checklist situation actuelle'!H34=3,\"?\",IF('checklist situation actuelle'!H34=4,\"x\",IF('checklist situation actuelle'!H34=0,\"/\",\"!?\")))))","v":"/"},"Eclairage absent ou en mauvais état",null,null,null,null,null,null,null,null,null,"M3 - mesures vélo"]
[null,null,null,null,null,null,null,null,null,{"$f":"IF('checklist situation actuelle'!H35=1,\"■\",IF('checklist situation actuelle'!H35=2,\"□\",IF('checklist situation actuelle'!H35=3,\"?\",IF('checklist situation actuelle'!H35=4,\"x\",IF('checklist situation actuelle'!H35=0,\"/\",\"!?\")))))","v":"/"},"Utilisation d’un vélo de course ou d'un vélo électrique",null,null,null,null,null,null,null,null,null,{"$f":"IF('checklist situation actuelle'!H69=1,\"■\",IF('checklist situation actuelle'!H69=2,\"□\",IF('checklist situation actuelle'!H69=3,\"?\",IF('checklist situation actuelle'!H69=4,\"x\",IF('checklist situation actuelle'!H69=0,\"/\",\"!?\")))))","v":"/"},"Contrôle du vélo"]
[null,null,null,null,null,null,null,null,null,"R4 - facteurs de risque moto et cyclomoteur",null,null,null,null,null,null,null,null,null,null,{"$f":"IF('checklist situation actuelle'!H70=1,\"■\",IF('checklist situation actuelle'!H70=2,\"□\",IF('checklist situation actuelle'!H70=3,\"?\",IF('checklist situation actuelle'!H70=4,\"x\",IF('checklist situation actuelle'!H70=0,\"/\",\"!?\")))))","v":"/"},"Fourniture d’équipements cyclistes (casque et accessoires fluorescents)"]
[null,null,null,null,null,null,null,null,null,{"$f":"IF('checklist situation actuelle'!H37=1,\"■\",IF('checklist situation actuelle'!H37=2,\"□\",IF('checklist situation actuelle'!H37=3,\"?\",IF('checklist situation actuelle'!H37=4,\"x\",IF('checklist situation actuelle'!H37=0,\"/\",\"!?\")))))","v":"/"},"Employés qui se déplacent en moto ou en cyclomoteur pour le travail",null,null,null,null,null,null,null,null,null,{"$f":"IF('checklist situation actuelle'!H71=1,\"■\",IF('checklist situation actuelle'!H71=2,\"□\",IF('checklist situation actuelle'!H71=3,\"?\",IF('checklist situation actuelle'!H71=4,\"x\",IF('checklist situation actuelle'!H71=0,\"/\",\"!?\")))))","v":"/"},"Mise à disposition d’un parking pour vélos en bon état et sécurisé"]
[null,null,null,null,null,null,null,null,null,"R5- facteurs de risque voiture",null,null,null,null,null,null,null,null,null,null,{"$f":"IF('checklist situation actuelle'!H72=1,\"■\",IF('checklist situation actuelle'!H72=2,\"□\",IF('checklist situation actuelle'!H72=3,\"?\",IF('checklist situation actuelle'!H72=4,\"x\",IF('checklist situation actuelle'!H72=0,\"/\",\"!?\")))))","v":"/"},"Conseils aux employés cyclistes sur les itinéraires à emprunter (mettre en avant les itinéraires les plus sûrs)"]
[null,null,null,null,null,null,null,null,null,{"$f":"IF('checklist situation actuelle'!H39=1,\"■\",IF('checklist situation actuelle'!H39=2,\"□\",IF('checklist situation actuelle'!H39=3,\"?\",IF('checklist situation actuelle'!H39=4,\"x\",IF('checklist situation actuelle'!H39=0,\"/\",\"!?\")))))","v":"/"},"Excès de vitesse ",null,null,null,null,null,null,null,null,null,{"$f":"IF('checklist situation actuelle'!H73=1,\"■\",IF('checklist situation actuelle'!H73=2,\"□\",IF('checklist situation actuelle'!H73=3,\"?\",IF('checklist situation actuelle'!H73=4,\"x\",IF('checklist situation actuelle'!H73=0,\"/\",\"!?\")))))","v":"/"},"Organisation d’un cours pour rouler en vélo en toute sécurité"]
[null,null,null,null,null,null,null,null,null,{"$f":"IF('checklist situation actuelle'!H40=1,\"■\",IF('checklist situation actuelle'!H40=2,\"□\",IF('checklist situation actuelle'!H40=3,\"?\",IF('checklist situation actuelle'!H40=4,\"x\",IF('checklist situation actuelle'!H40=0,\"/\",\"!?\")))))","v":"/"},"Autres infractions : brûler un feu rouge, téléphoner au volant...",null,null,null,null,null,null,null,null,null,"M4 - mesures motos et cyclomoteurs"]
[null,null,null,null,null,null,null,null,null,{"$f":"IF('checklist situation actuelle'!H41=1,\"■\",IF('checklist situation actuelle'!H41=2,\"□\",IF('checklist situation actuelle'!H41=3,\"?\",IF('checklist situation actuelle'!H41=4,\"x\",IF('checklist situation actuelle'!H41=0,\"/\",\"!?\")))))","v":"/"},"Membres du personnel avec une conduite à risque",null,null,null,null,null,null,null,null,null,{"$f":"IF('checklist situation actuelle'!H75=1,\"■\",IF('checklist situation actuelle'!H75=2,\"□\",IF('checklist situation actuelle'!H75=3,\"?\",IF('checklist situation actuelle'!H75=4,\"x\",IF('checklist situation actuelle'!H75=0,\"/\",\"!?\")))))","v":"/"},"Organisation d’une formation de conduite défensive pour les motocyclistes"]
[null,null,null,null,null,null,null,null,null,{"$f":"IF('checklist situation actuelle'!H42=1,\"■\",IF('checklist situation actuelle'!H42=2,\"□\",IF('checklist situation actuelle'!H42=3,\"?\",IF('checklist situation actuelle'!H42=4,\"x\",IF('checklist situation actuelle'!H42=0,\"/\",\"!?\")))))","v":"/"},"Membres du personnel qui ne portent pas la ceinture de sécurité (à l’avant ou à l’arrière)",null,null,null,null,null,null,null,null,null,{"$f":"IF('checklist situation actuelle'!H76=1,\"■\",IF('checklist situation actuelle'!H76=2,\"□\",IF('checklist situation actuelle'!H76=3,\"?\",IF('checklist situation actuelle'!H76=4,\"x\",IF('checklist situation actuelle'!H76=0,\"/\",\"!?\")))))","v":"/"},"Encourager le port du casque et l’utilisation du casque intégral (qui recouvre totalement la tête et le visage)"]
[null,null,null,null,null,null,null,null,null,{"$f":"IF('checklist situation actuelle'!H43=1,\"■\",IF('checklist situation actuelle'!H43=2,\"□\",IF('checklist situation actuelle'!H43=3,\"?\",IF('checklist situation actuelle'!H43=4,\"x\",IF('checklist situation actuelle'!H43=0,\"/\",\"!?\")))))","v":"/"},"Membres du personnel qui roulent parfois sous l’influence de l’alcool",null,null,null,null,null,null,null,null,null,{"$f":"IF('checklist situation actuelle'!H77=1,\"■\",IF('checklist situation actuelle'!H77=2,\"□\",IF('checklist situation actuelle'!H77=3,\"?\",IF('checklist situation actuelle'!H77=4,\"x\",IF('checklist situation actuelle'!H77=0,\"/\",\"!?\")))))","v":"/"},"Attention aux vêtements des motocyclistes et des cyclomotoristes "]
[null,null,null,null,null,null,null,null,null,{"$f":"IF('checklist situation actuelle'!H44=1,\"■\",IF('checklist situation actuelle'!H44=2,\"□\",IF('checklist situation actuelle'!H44=3,\"?\",IF('checklist situation actuelle'!H44=4,\"x\",IF('checklist situation actuelle'!H44=0,\"/\",\"!?\")))))","v":"/"},"Membres du personnel qui roulent parfois sous l’influence de drogues ou de médicaments",null,null,null,null,null,null,null,null,null,"M5 - mesures voiture"]
[null,null,null,null,null,null,null,null,null,{"$f":"IF('checklist situation actuelle'!H45=1,\"■\",IF('checklist situation actuelle'!H45=2,\"□\",IF('checklist situation actuelle'!H45=3,\"?\",IF('checklist situation actuelle'!H45=4,\"x\",IF('checklist situation actuelle'!H45=0,\"/\",\"!?\")))))","v":"/"},"Membres du personnel qui utilisent parfois leur GSM au volant ",null,null,null,null,null,null,null,null,null,{"$f":"IF('checklist situation actuelle'!H79=1,\"■\",IF('checklist situation actuelle'!H79=2,\"□\",IF('checklist situation actuelle'!H79=3,\"?\",IF('checklist situation actuelle'!H79=4,\"x\",IF('checklist situation actuelle'!H79=0,\"/\",\"!?\")))))","v":"/"},"Élaboration d’un code de conduite pour les automobilistes"]
[null,null,null,null,null,null,null,null,null,{"$f":"IF('checklist situation actuelle'!H46=1,\"■\",IF('checklist situation actuelle'!H46=2,\"□\",IF('checklist situation actuelle'!H46=3,\"?\",IF('checklist situation actuelle'!H46=4,\"x\",IF('checklist situation actuelle'!H46=0,\"/\",\"!?\")))))","v":"/"},"Les employés doivent être joignables en permanence même au volant et/ou doivent mener eux-mêmes des appels téléphoniques (avec un kit mains libres)",null,null,null,null,null,null,null,null,null,{"$f":"IF('checklist situation actuelle'!H80=1,\"■\",IF('checklist situation actuelle'!H80=2,\"□\",IF('checklist situation actuelle'!H80=3,\"?\",IF('checklist situation actuelle'!H80=4,\"x\",IF('checklist situation actuelle'!H80=0,\"/\",\"!?\")))))","v":"/"},"Suivi de la conduite des nouveaux employés"]
[null,null,null,null,null,null,null,null,null,{"$f":"IF('checklist situation actuelle'!H47=1,\"■\",IF('checklist situation actuelle'!H47=2,\"□\",IF('checklist situation actuelle'!H47=3,\"?\",IF('checklist situation actuelle'!H47=4,\"x\",IF('checklist situation actuelle'!H47=0,\"/\",\"!?\")))))","v":"/"},"Membres du personnel qui font de très longs trajets domicile-lieu de travail en voiture",null,null,null,null,null,null,null,null,null,{"$f":"IF('checklist situation actuelle'!H81=1,\"■\",IF('checklist situation actuelle'!H81=2,\"□\",IF('checklist situation actuelle'!H81=3,\"?\",IF('checklist situation actuelle'!H81=4,\"x\",IF('checklist situation actuelle'!H81=0,\"/\",\"!?\")))))","v":"/"},"Décourager les appels téléphoniques au volant (même avec un kit mains libres)  Fournir des kits mains libres dans les voitures de société et de fonction"]
[null,null,null,null,null,null,null,null,null,{"$f":"IF('checklist situation actuelle'!H48=1,\"■\",IF('checklist situation actuelle'!H48=2,\"□\",IF('checklist situation actuelle'!H48=3,\"?\",IF('checklist situation actuelle'!H48=4,\"x\",IF('checklist situation actuelle'!H48=0,\"/\",\"!?\")))))","v":"/"},"Déplacements de service fréquents en voiture",null,null,null,null,null,null,null,null,null,{"$f":"IF('checklist situation actuelle'!H82=1,\"■\",IF('checklist situation actuelle'!H82=2,\"□\",IF('checklist situation actuelle'!H82=3,\"?\",IF('checklist situation actuelle'!H82=4,\"x\",IF('checklist situation actuelle'!H82=0,\"/\",\"!?\")))))","v":"/"},"Responsabilisation de collaborateurs qui ont commis une infraction routière"]
[null,null,null,null,null,null,null,null,null,{"$f":"IF('checklist situation actuelle'!H49=1,\"■\",IF('checklist situation actuelle'!H49=2,\"□\",IF('checklist situation actuelle'!H49=3,\"?\",IF('checklist situation actuelle'!H49=4,\"x\",IF('checklist situation actuelle'!H49=0,\"/\",\"!?\")))))","v":"/"},"Longs déplacements de service fréquents en voiture",null,null,null,null,null,null,null,null,null,{"$f":"IF('checklist situation actuelle'!H83=1,\"■\",IF('checklist situation actuelle'!H83=2,\"□\",IF('checklist situation actuelle'!H83=3,\"?\",IF('checklist situation actuelle'!H83=4,\"x\",IF('checklist situation actuelle'!H83=0,\"/\",\"!?\")))))","v":"/"},"Attention à la conduite sous influence lors d’événements d’entreprise"]
[null,null,null,null,null,null,null,null,null,{"$f":"IF('checklist situation actuelle'!H50=1,\"■\",IF('checklist situation actuelle'!H50=2,\"□\",IF('checklist situation actuelle'!H50=3,\"?\",IF('checklist situation actuelle'!H50=4,\"x\",IF('checklist situation actuelle'!H50=0,\"/\",\"!?\")))))","v":"/"},"Les trajets domicile-lieu de travail/déplacements professionnel en voiture à des heures très matinales ou tardives",null,null,null,null,null,null,null,null,null,{"$f":"IF('checklist situation actuelle'!H84=1,\"■\",IF('checklist situation actuelle'!H84=2,\"□\",IF('checklist situation actuelle'!H84=3,\"?\",IF('checklist situation actuelle'!H84=4,\"x\",IF('checklist situation actuelle'!H84=0,\"/\",\"!?\")))))","v":"/"},"Attention à la sécurité routière dans la gestion de flotte (p. ex. nouvelles technologies: Intelligent Speed Adaptation (ISA), entretien régulier, véhicules équipés de parechocs qui atténuent les chocs avec les piétons, pneus hiver...)"]
[null,null,null,null,null,null,null,null,null,"R6- facteurs de risque camion",null,null,null,null,null,null,null,null,null,null,{"$f":"IF('checklist situation actuelle'!H85=1,\"■\",IF('checklist situation actuelle'!H85=2,\"□\",IF('checklist situation actuelle'!H85=3,\"?\",IF('checklist situation actuelle'!H85=4,\"x\",IF('checklist situation actuelle'!H85=0,\"/\",\"!?\")))))","v":"/"},"Organisation de cours de conduite défensive pour les automobilistes"]
[null,null,null,null,null,null,null,null,null,{"$f":"IF('checklist situation actuelle'!H52=1,\"■\",IF('checklist situation actuelle'!H52=2,\"□\",IF('checklist situation actuelle'!H52=3,\"?\",IF('checklist situation actuelle'!H52=4,\"x\",IF('checklist situation actuelle'!H52=0,\"/\",\"!?\")))))","v":"/"},"Livraisons camion fréquentes par l’entreprise",null,null,null,null,null,null,null,null,null,{"$f":"IF('checklist situation actuelle'!H86=1,\"■\",IF('checklist situation actuelle'!H86=2,\"□\",IF('checklist situation actuelle'!H86=3,\"?\",IF('checklist situation actuelle'!H86=4,\"x\",IF('checklist situation actuelle'!H86=0,\"/\",\"!?\")))))","v":"/"},"Proposer un logement au lieu d’imposer aux employés de faire un long trajet à une heure tardive pour rentrer chez eux"]
[null,null,null,null,null,null,null,null,null,{"$f":"IF('checklist situation actuelle'!H53=1,\"■\",IF('checklist situation actuelle'!H53=2,\"□\",IF('checklist situation actuelle'!H53=3,\"?\",IF('checklist situation actuelle'!H53=4,\"x\",IF('checklist situation actuelle'!H53=0,\"/\",\"!?\")))))","v":"/"},"Livraisons fréquentes à l’entreprise",null,null,null,null,null,null,null,null,null,"M6 - mesures camion"]
[null,null,null,null,null,null,null,null,null,{"$f":"IF('checklist situation actuelle'!H54=1,\"■\",IF('checklist situation actuelle'!H54=2,\"□\",IF('checklist situation actuelle'!H54=3,\"?\",IF('checklist situation actuelle'!H54=4,\"x\",IF('checklist situation actuelle'!H54=0,\"/\",\"!?\")))))","v":"/"},"Les camions empruntent des routes moins adaptées pour le trafic de poids lourds, en raison d’un contact avec des usagers faibles, d’une infrastructure inadaptée...",null,null,null,null,null,null,null,null,null,{"$f":"IF('checklist situation actuelle'!H88=1,\"■\",IF('checklist situation actuelle'!H88=2,\"□\",IF('checklist situation actuelle'!H88=3,\"?\",IF('checklist situation actuelle'!H88=4,\"x\",IF('checklist situation actuelle'!H88=0,\"/\",\"!?\")))))","v":"/"},"Élaboration un code de conduite pour les chauffeurs de camion"]
[null,null,null,null,null,null,null,null,null,null,null,null,null,null,null,null,null,null,null,null,{"$f":"IF('checklist situation actuelle'!H89=1,\"■\",IF('checklist situation actuelle'!H89=2,\"□\",IF('checklist situation actuelle'!H89=3,\"?\",IF('checklist situation actuelle'!H89=4,\"x\",IF('checklist situation actuelle'!H89=0,\"/\",\"!?\")))))","v":"/"},"Équiper les camions des dernières avancées technologiques qui améliorent la sécurité"]
[null,null,null,null,null,null,null,null,null,null,null,null,null,null,null,null,null,null,null,null,{"$f":"IF('checklist situation actuelle'!H90=1,\"■\",IF('checklist situation actuelle'!H90=2,\"□\",IF('checklist situation actuelle'!H90=3,\"?\",IF('checklist situation actuelle'!H90=4,\"x\",IF('checklist situation actuelle'!H90=0,\"/\",\"!?\")))))","v":"/"},"Ne pas surcharger la planification des trajets"]
[null,null,null,null,null,null,null,null,null,null,null,null,null,null,null,null,null,null,null,null,{"$f":"IF('checklist situation actuelle'!H91=1,\"■\",IF('checklist situation actuelle'!H91=2,\"□\",IF('checklist situation actuelle'!H91=3,\"?\",IF('checklist situation actuelle'!H91=4,\"x\",IF('checklist situation actuelle'!H91=0,\"/\",\"!?\")))))","v":"/"},"Signature de la Charte de sécurité des poids lourds sur www.truckveilig.be"]
[null,null,null,null,null,null,null,null,null,null,null,null,null,null,null,null,null,null,null,null,{"$f":"IF('checklist situation actuelle'!H92=1,\"■\",IF('checklist situation actuelle'!H92=2,\"□\",IF('checklist situation actuelle'!H92=3,\"?\",IF('checklist situation actuelle'!H92=4,\"x\",IF('checklist situation actuelle'!H92=0,\"/\",\"!?\")))))","v":"/"},"Encourager et faciliter le respect des temps de conduite et de repos"]

{"sheet":"aperçu - lancement actions (2)","index":3,"n_rows":154,"n_cols":10,"rows_kept":154,"cut":false,"hidden":false,"merged":[[151,2,151,8],[152,2,152,8],[154,2,154,8],[1,2,1,9],[24,2,24,9],[25,2,25,9],[21,2,21,9],[153,2,153,8],[146,2,146,8],[147,2,147,9],[150,2,150,9],[91,2,91,8],[92,2,92,9],[149,2,149,8],[143,2,143,8],[144,2,144,8],[138,2,138,8],[145,2,145,9],[142,2,142,8],[141,2,141,8],[137,2,137,9],[140,2,140,8],[134,2,134,8],[136,2,136,8],[87,2,87,9],[86,2,86,9],[127,2,127,9],[121,2,121,8],[125,2,125,8],[133,2,133,8],[88,2,88,9],[130,2,130,8],[131,2,131,9],[128,2,128,8],[132,2,132,8],[123,2,123,8],[80,2,80,8],[124,2,124,8],[79,2,79,9],[81,2,81,8],[82,2,82,8],[83,2,83,8],[122,2,122,8],[84,2,84,9],[85,2,85,9],[90,2,90,8],[28,2,28,7],[65,2,65,8],[72,2,72,8],[73,2,73,8],[29,2,29,7],[30,2,30,7],[31,2,31,7],[68,2,68,8],[32,2,32,7],[75,2,75,8],[69,2,69,8],[33,2,33,7],[70,2,70,8],[34,2,34,7],[23,2,23,6],[61,2,61,8],[119,2,119,9],[120,2,120,8],[38,2,38,9],[96,2,96,9],[58,2,58,9],[116,2,116,9],[26,2,26,7],[63,2,63,8],[27,2,27,7],[64,2,64,8],[71,2,71,8],[67,2,67,8],[78,2,78,8],[77,2,77,8]]}
[null,null,"Collecte de données"]
[null,null,"Vous retrouvez ci-dessous un aperçu de la collecte de données en matière de sécurité routière dans votre entreprise"]
[null,"Légende"]
[null,"■","est collecté",{"$f":"COUNTIF('checklist situation actuelle'!H$9:H$19,1)","v":0},null,null,null,1]
[null,"□","pas encore collecté",{"$f":"COUNTIF('checklist situation actuelle'!H$9:H$19,2)","v":0},null,null,null,2]
[null,"?","je ne sais pas",{"$f":"COUNTIF('checklist situation actuelle'!H$9:H$19,3)","v":0},null,null,null,3]
[null,"/","non complété",{"$f":"11-SUM(D4:D6,D8)","v":11},null,null,null,0]
[null,"x","N/A",{"$f":"COUNTIF('checklist situation actuelle'!H$9:H$19,4)","v":0},null,null,null,4]
[]
[]
[]
[]
[]
[]
[]
[]
[]
[]
[]
[]
[]
[null,null,"Les symboles indiquent les données que votre entreprise peut encore collecter en supplément."]
[]
[null,null,"Eléments pour lesquels l’entreprise peut collecter des informations"]
[null,{"$f":"IF('checklist situation actuelle'!H9=1,\"■\",IF('checklist situation actuelle'!H9=2,\"□\",IF('checklist situation actuelle'!H9=3,\"?\",IF('checklist situation actuelle'!H9=4,\"x\",IF('checklist situation actuelle'!H9=0,\"/\",\"!?\")))))","v":"/"},"Chiffres des accidents de la route"]
[null,{"$f":"IF('checklist situation actuelle'!H10=1,\"■\",IF('checklist situation actuelle'!H10=2,\"□\",IF('checklist situation actuelle'!H10=3,\"?\",IF('checklist situation actuelle'!H10=4,\"x\",IF('checklist situation actuelle'!H10=0,\"/\",\"!?\")))))","v":"/"},"Les moyens de transport utilisés par les employés pour le trajet domicile-lieu de travail (y compris les transports en amont et en aval du trajet)"]
[null,{"$f":"IF('checklist situation actuelle'!H11=1,\"■\",IF('checklist situation actuelle'!H11=2,\"□\",IF('checklist situation actuelle'!H11=3,\"?\",IF('checklist situation actuelle'!H11=4,\"x\",IF('checklist situation actuelle'!H11=0,\"/\",\"!?\")))))","v":"/"},"Amendes pour infractions routières"]
[null,{"$f":"IF('checklist situation actuelle'!H12=1,\"■\",IF('checklist situation actuelle'!H12=2,\"□\",IF('checklist situation actuelle'!H12=3,\"?\",IF('checklist situation actuelle'!H12=4,\"x\",IF('checklist situation actuelle'!H12=0,\"/\",\"!?\")))))","v":"/"},"Nombre de déplacements de service par moyen de transport"]
[null,{"$f":"IF('checklist situation actuelle'!H13=1,\"■\",IF('checklist situation actuelle'!H13=2,\"□\",IF('checklist situation actuelle'!H13=3,\"?\",IF('checklist situation actuelle'!H13=4,\"x\",IF('checklist situation actuelle'!H13=0,\"/\",\"!?\")))))","v":"/"},"Itinéraires empruntés par les cyclistes pour les trajets domicile-lieu de travail"]
[null,{"$f":"IF('checklist situation actuelle'!H14=1,\"■\",IF('checklist situation actuelle'!H14=2,\"□\",IF('checklist situation actuelle'!H14=3,\"?\",IF('checklist situation actuelle'!H14=4,\"x\",IF('checklist situation actuelle'!H14=0,\"/\",\"!?\")))))","v":"/"},"Itinéraires empruntés par les cyclistes pour les déplacements de service "]
[null,{"$f":"IF('checklist situation actuelle'!H15=1,\"■\",IF('checklist situation actuelle'!H15=2,\"□\",IF('checklist situation actuelle'!H15=3,\"?\",IF('checklist situation actuelle'!H15=4,\"x\",IF('checklist situation actuelle'!H15=0,\"/\",\"!?\")))))","v":"/"},"Port du casque pour les cyclistes"]
[null,{"$f":"IF('checklist situation actuelle'!H16=1,\"■\",IF('checklist situation actuelle'!H16=2,\"□\",IF('checklist situation actuelle'!H16=3,\"?\",IF('checklist situation actuelle'!H16=4,\"x\",IF('checklist situation actuelle'!H16=0,\"/\",\"!?\")))))","v":"/"},"Eclairage en bon état pour les cyclistes"]
[null,{"$f":"IF('checklist situation actuelle'!H17=1,\"■\",IF('checklist situation actuelle'!H17=2,\"□\",IF('checklist situation actuelle'!H17=3,\"?\",IF('checklist situation actuelle'!H17=4,\"x\",IF('checklist situation actuelle'!H17=0,\"/\",\"!?\")))))","v":"/"},"Accessoires fluorescents pour les cyclistes"]
[null,{"$f":"IF('checklist situation actuelle'!H18=1,\"■\",IF('checklist situation actuelle'!H18=2,\"□\",IF('checklist situation actuelle'!H18=3,\"?\",IF('checklist situation actuelle'!H18=4,\"x\",IF('checklist situation actuelle'!H18=0,\"/\",\"!?\")))))","v":"/"},"Port de la ceinture pour les automobilistes"]
[null,{"$f":"IF('checklist situation actuelle'!H19=1,\"■\",IF('checklist situation actuelle'!H19=2,\"□\",IF('checklist situation actuelle'!H19=3,\"?\",IF('checklist situation actuelle'!H19=4,\"x\",IF('checklist situation actuelle'!H19=0,\"/\",\"!?\")))))","v":"/"},"Port du casque pour les motocyclistes et cyclomotoristes"]
[]
[]
[null,null,"Facteurs de risque"]
[null,null,"Vous retrouvez ci-dessous un aperçu de la présence ou de l’absence de facteurs de risque concernant la sécurité routière pour les différents moyens de transport dans votre entreprise"]
[null,"Légende",null,"gén.","piétons","vélo","moto / cyclo moteur","auto","camion","total"]
[null,"■","présent",{"$f":"COUNTIF('checklist situation actuelle'!H$23:H$23,$H4)","v":0},{"$f":"COUNTIF('checklist situation actuelle'!H$25:H$27,$H4)","v":0},{"$f":"COUNTIF('checklist situation actuelle'!H$29:H$35,$H4)","v":0},{"$f":"COUNTIF('checklist situation actuelle'!H$37:H$37,$H4)","v":0},{"$f":"COUNTIF('checklist situation actuelle'!H$39:H$50,$H4)","v":0},{"$f":"COUNTIF('checklist situation actuelle'!H$52:H$54,$H4)","v":0},{"$f":"SUM(D41:I41)","v":0}]
[null,"□","absent",{"$f":"COUNTIF('checklist situation actuelle'!H$23:H$23,$H5)","v":0},{"$f":"COUNTIF('checklist situation actuelle'!H$25:H$27,$H5)","v":0},{"$f":"COUNTIF('checklist situation actuelle'!H$29:H$35,$H5)","v":0},{"$f":"COUNTIF('checklist situation actuelle'!H$37:H$37,$H5)","v":0},{"$f":"COUNTIF('checklist situation actuelle'!H$39:H$50,$H5)","v":0},{"$f":"COUNTIF('checklist situation actuelle'!H$52:H$54,$H5)","v":0},{"$f":"SUM(D42:I42)","v":0}]
[null,"?","je ne sais pas",{"$f":"COUNTIF('checklist situation actuelle'!H$23:H$23,$H6)","v":0},{"$f":"COUNTIF('checklist situation actuelle'!H$25:H$27,$H6)","v":0},{"$f":"COUNTIF('checklist situation actuelle'!H$29:H$35,$H6)","v":0},{"$f":"COUNTIF('checklist situation actuelle'!H$37:H$37,$H6)","v":0},{"$f":"COUNTIF('checklist situation actuelle'!H$39:H$50,$H6)","v":0},{"$f":"COUNTIF('checklist situation actuelle'!H$52:H$54,$H6)","v":0},{"$f":"SUM(D43:I43)","v":0}]
[null,"/","non complété",{"$f":"1-SUM(D41:D43,D45)","v":1},{"$f":"3-SUM(E41:E43,E45)","v":3},{"$f":"7-SUM(F41:F43,F45)","v":7},{"$f":"1-SUM(G41:G43,G45)","v":1},{"$f":"12-SUM(H41:H43,H45)","v":12},{"$f":"2-SUM(I41:I43,I45)","v":2},{"$f":"26-SUM(J41:J43,J45)","v":26}]
[null,"x","N/A",{"$f":"COUNTIF('checklist situation actuelle'!H$23:H$23,$H8)","v":0},{"$f":"COUNTIF('checklist situation actuelle'!H$25:H$27,$H8)","v":0},{"$f":"COUNTIF('checklist situation actuelle'!H$29:H$35,$H8)","v":0},{"$f":"COUNTIF('checklist situation actuelle'!H$37:H$37,$H8)","v":0},{"$f":"COUNTIF('checklist situation actuelle'!H$39:H$50,$H8)","v":0},{"$f":"COUNTIF('checklist situation actuelle'!H$52:H$54,$H8)","v":0},{"$f":"SUM(D45:I45)","v":0}]
[null,null,null,"général","piétons","vélo","moto / cyclomoteur","auto","camion"]
[]
[]
[]
[]
[]
[]
[]
[]
[]
[]
[]
[]
[null,null,"Les symboles indiquent les facteurs de risque présents dans votre entreprise."]
[]
[null,"R1 - facteurs de risque général"]
[null,{"$f":"IF('checklist situation actuelle'!H23=1,\"■\",IF('checklist situation actuelle'!H23=2,\"□\",IF('checklist situation actuelle'!H23=3,\"?\",IF('checklist situation actuelle'!H23=4,\"x\",IF('checklist situation actuelle'!H23=0,\"/\",\"!?\")))))","v":"/"},"Endroits dangereux aux abords de l’entreprise"]
[null,"R2- facteurs de risque piétons"]
[null,{"$f":"IF('checklist situation actuelle'!H25=1,\"■\",IF('checklist situation actuelle'!H25=2,\"□\",IF('checklist situation actuelle'!H25=3,\"?\",IF('checklist situation actuelle'!H25=4,\"x\",IF('checklist situation actuelle'!H25=0,\"/\",\"!?\")))))","v":"/"},"Endroits dangereux sur le trajet domicile-lieu de travail (en amont, en aval du trajet et/ou sur le trajet principal)"]
[null,{"$f":"IF('checklist situation actuelle'!H26=1,\"■\",IF('checklist situation actuelle'!H26=2,\"□\",IF('checklist situation actuelle'!H26=3,\"?\",IF('checklist situation actuelle'!H26=4,\"x\",IF('checklist situation actuelle'!H26=0,\"/\",\"!?\")))))","v":"/"},"Endroits dangereux sur le domaine privé"]
[null,{"$f":"IF('checklist situation actuelle'!H27=1,\"■\",IF('checklist situation actuelle'!H27=2,\"□\",IF('checklist situation actuelle'!H27=3,\"?\",IF('checklist situation actuelle'!H27=4,\"x\",IF('checklist situation actuelle'!H27=0,\"/\",\"!?\")))))","v":"/"},"Endroits dangereux sur le chemin pour piétons vers l’arrêt des transports en commun"]
[null,"R3 - facteurs de risque cyclistes"]
[null,{"$f":"IF('checklist situation actuelle'!H29=1,\"■\",IF('checklist situation actuelle'!H29=2,\"□\",IF('checklist situation actuelle'!H29=3,\"?\",IF('checklist situation actuelle'!H29=4,\"x\",IF('checklist situation actuelle'!H29=0,\"/\",\"!?\")))))","v":"/"},"Endroits dangereux sur les itinéraires empruntés par les cyclistes"]
[null,{"$f":"IF('checklist situation actuelle'!H30=1,\"■\",IF('checklist situation actuelle'!H30=2,\"□\",IF('checklist situation actuelle'!H30=3,\"?\",IF('checklist situation actuelle'!H30=4,\"x\",IF('checklist situation actuelle'!H30=0,\"/\",\"!?\")))))","v":"/"},"Endroits dangereux sur les itinéraires fréquemment empruntés par les cyclistes pour les déplacements de service"]
[null,{"$f":"IF('checklist situation actuelle'!H31=1,\"■\",IF('checklist situation actuelle'!H31=2,\"□\",IF('checklist situation actuelle'!H31=3,\"?\",IF('checklist situation actuelle'!H31=4,\"x\",IF('checklist situation actuelle'!H31=0,\"/\",\"!?\")))))","v":"/"},"Situations dangereuses sur le domaine privé (p. ex. combinaison de plusieurs types de trafic)"]
[null,{"$f":"IF('checklist situation actuelle'!H32=1,\"■\",IF('checklist situation actuelle'!H32=2,\"□\",IF('checklist situation actuelle'!H32=3,\"?\",IF('checklist situation actuelle'!H32=4,\"x\",IF('checklist situation actuelle'!H32=0,\"/\",\"!?\")))))","v":"/"},"Port du casque inexistant ou trop peu appliqué"]
[null,{"$f":"IF('checklist situation actuelle'!H33=1,\"■\",IF('checklist situation actuelle'!H33=2,\"□\",IF('checklist situation actuelle'!H33=3,\"?\",IF('checklist situation actuelle'!H33=4,\"x\",IF('checklist situation actuelle'!H33=0,\"/\",\"!?\")))))","v":"/"},"Accessoires fluorescents absents ou insuffisants "]
[null,{"$f":"IF('checklist situation actuelle'!H34=1,\"■\",IF('checklist situation actuelle'!H34=2,\"□\",IF('checklist situation actuelle'!H34=3,\"?\",IF('checklist situation actuelle'!H34=4,\"x\",IF('checklist situation actuelle'!H34=0,\"/\",\"!?\")))))","v":"/"},"Eclairage absent ou en mauvais état"]
[null,{"$f":"IF('checklist situation actuelle'!H35=1,\"■\",IF('checklist situation actuelle'!H35=2,\"□\",IF('checklist situation actuelle'!H35=3,\"?\",IF('checklist situation actuelle'!H35=4,\"x\",IF('checklist situation actuelle'!H35=0,\"/\",\"!?\")))))","v":"/"},"Utilisation d’un vélo de course ou d'un vélo électrique"]
[null,"R4 - facteurs de risque moto et cyclomoteur"]
[null,{"$f":"IF('checklist situation actuelle'!H37=1,\"■\",IF('checklist situation actuelle'!H37=2,\"□\",IF('checklist situation actuelle'!H37=3,\"?\",IF('checklist situation actuelle'!H37=4,\"x\",IF('checklist situation actuelle'!H37=0,\"/\",\"!?\")))))","v":"/"},"Employés qui se déplacent en moto ou en cyclomoteur pour le travail"]
[null,"R5- facteurs de risque voiture"]
[null,{"$f":"IF('checklist situation actuelle'!H39=1,\"■\",IF('checklist situation actuelle'!H39=2,\"□\",IF('checklist situation actuelle'!H39=3,\"?\",IF('checklist situation actuelle'!H39=4,\"x\",IF('checklist situation actuelle'!H39=0,\"/\",\"!?\")))))","v":"/"},"Excès de vitesse"]
[null,{"$f":"IF('checklist situation actuelle'!H40=1,\"■\",IF('checklist situation actuelle'!H40=2,\"□\",IF('checklist situation actuelle'!H40=3,\"?\",IF('checklist situation actuelle'!H40=4,\"x\",IF('checklist situation actuelle'!H40=0,\"/\",\"!?\")))))","v":"/"},"Autres infractions : brûler un feu rouge, téléphoner au volant..."]
[null,{"$f":"IF('checklist situation actuelle'!H41=1,\"■\",IF('checklist situation actuelle'!H41=2,\"□\",IF('checklist situation actuelle'!H41=3,\"?\",IF('checklist situation actuelle'!H41=4,\"x\",IF('checklist situation actuelle'!H41=0,\"/\",\"!?\")))))","v":"/"},"Membres du personnel avec une conduite à risque"]
[null,{"$f":"IF('checklist situation actuelle'!H42=1,\"■\",IF('checklist situation actuelle'!H42=2,\"□\",IF('checklist situation actuelle'!H42=3,\"?\",IF('checklist situation actuelle'!H42=4,\"x\",IF('checklist situation actuelle'!H42=0,\"/\",\"!?\")))))","v":"/"},"Membres du personnel qui ne portent pas la ceinture de sécurité (à l’avant ou à l’arrière)"]
[null,{"$f":"IF('checklist situation actuelle'!H43=1,\"■\",IF('checklist situation actuelle'!H43=2,\"□\",IF('checklist situation actuelle'!H43=3,\"?\",IF('checklist situation actuelle'!H43=4,\"x\",IF('checklist situation actuelle'!H43=0,\"/\",\"!?\")))))","v":"/"},"Membres du personnel qui roulent parfois sous l’influence de l’alcool"]
[null,{"$f":"IF('checklist situation actuelle'!H44=1,\"■\",IF('checklist situation actuelle'!H44=2,\"□\",IF('checklist situation actuelle'!H44=3,\"?\",IF('checklist situation actuelle'!H44=4,\"x\",IF('checklist situation actuelle'!H44=0,\"/\",\"!?\")))))","v":"/"},"Membres du personnel qui roulent parfois sous l’influence de drogues ou de médicaments"]
[null,{"$f":"IF('checklist situation actuelle'!H45=1,\"■\",IF('checklist situation actuelle'!H45=2,\"□\",IF('checklist situation actuelle'!H45=3,\"?\",IF('checklist situation actuelle'!H45=4,\"x\",IF('checklist situation actuelle'!H45=0,\"/\",\"!?\")))))","v":"/"},"Membres du personnel qui utilisent parfois leur GSM au volant "]
[null,{"$f":"IF('checklist situation actuelle'!H46=1,\"■\",IF('checklist situation actuelle'!H46=2,\"□\",IF('checklist situation actuelle'!H46=3,\"?\",IF('checklist situation actuelle'!H46=4,\"x\",IF('checklist situation actuelle'!H46=0,\"/\",\"!?\")))))","v":"/"},"Les employés doivent être joignables en permanence même au volant et/ou doivent mener eux-mêmes des appels téléphoniques (avec un kit mains libres)"]
[null,{"$f":"IF('checklist situation actuelle'!H47=1,\"■\",IF('checklist situation actuelle'!H47=2,\"□\",IF('checklist situation actuelle'!H47=3,\"?\",IF('checklist situation actuelle'!H47=4,\"x\",IF('checklist situation actuelle'!H47=0,\"/\",\"!?\")))))","v":"/"},"Membres du personnel qui font de très longs trajets domicile-lieu de travail en voiture"]
[null,{"$f":"IF('checklist situation actuelle'!H48=1,\"■\",IF('checklist situation actuelle'!H48=2,\"□\",IF('checklist situation actuelle'!H48=3,\"?\",IF('checklist situation actuelle'!H48=4,\"x\",IF('checklist situation actuelle'!H48=0,\"/\",\"!?\")))))","v":"/"},"Déplacements de service fréquents en voiture"]
[null,{"$f":"IF('checklist situation actuelle'!H49=1,\"■\",IF('checklist situation actuelle'!H49=2,\"□\",IF('checklist situation actuelle'!H49=3,\"?\",IF('checklist situation actuelle'!H49=4,\"x\",IF('checklist situation actuelle'!H49=0,\"/\",\"!?\")))))","v":"/"},"Longs déplacements de service fréquents en voiture"]
[null,{"$f":"IF('checklist situation actuelle'!H50=1,\"■\",IF('checklist situation actuelle'!H50=2,\"□\",IF('checklist situation actuelle'!H50=3,\"?\",IF('checklist situation actuelle'!H50=4,\"x\",IF('checklist situation actuelle'!H50=0,\"/\",\"!?\")))))","v":"/"},"Les trajets domicile-lieu de travail/déplacements de service en voiture à des heures très matinales ou tardives"]
[null,"R6- facteurs de risque camion"]
[null,{"$f":"IF('checklist situation actuelle'!H52=1,\"■\",IF('checklist situation actuelle'!H52=2,\"□\",IF('checklist situation actuelle'!H52=3,\"?\",IF('checklist situation actuelle'!H52=4,\"x\",IF('checklist situation actuelle'!H52=0,\"/\",\"!?\")))))","v":"/"},"Livraisons camion fréquentes par l’entreprise"]
[null,{"$f":"IF('checklist situation actuelle'!H53=1,\"■\",IF('checklist situation actuelle'!H53=2,\"□\",IF('checklist situation actuelle'!H53=3,\"?\",IF('checklist situation actuelle'!H53=4,\"x\",IF('checklist situation actuelle'!H53=0,\"/\",\"!?\")))))","v":"/"},"Livraisons fréquentes à l’entreprise"]
[null,{"$f":"IF('checklist situation actuelle'!H54=1,\"■\",IF('checklist situation actuelle'!H54=2,\"□\",IF('checklist situation actuelle'!H54=3,\"?\",IF('checklist situation actuelle'!H54=4,\"x\",IF('checklist situation actuelle'!H54=0,\"/\",\"!?\")))))","v":"/"},"Les camions empruntent des routes qui sont moins adaptées pour le trafic de poids lourds parce qu’elles sont aussi utilisées par des usagers faibles ou que l’infrastructure n’est pas adaptée..."]
[]
[]
[null,null,"Mesures"]
[null,null,"Vous retrouvez ci-dessous un aperçu des mesures de sécurité routière qui ont été prises dans votre entreprises et celles qui doivent encore être prises."]
[null,"Légende",null,"vision","piétons","vélo","moto / cyclo moteur","voiture","camion","total"]
[null,"■","présent",{"$f":"COUNTIF('checklist situation actuelle'!$H$58:$H$64,$H4)","v":0},{"$f":"COUNTIF('checklist situation actuelle'!$H$66:$H$67,$H4)","v":0},{"$f":"COUNTIF('checklist situation actuelle'!$H$69:$H$73,$H4)","v":0},{"$f":"COUNTIF('checklist situation actuelle'!$H$75:$H$77,$H4)","v":0},{"$f":"COUNTIF('checklist situation actuelle'!$H$79:$H$86,$H4)","v":0},{"$f":"COUNTIF('checklist situation actuelle'!$H$88:$H$92,$H4)","v":0},{"$f":"SUM(D99:I99)","v":0}]
[null,"□","absent",{"$f":"COUNTIF('checklist situation actuelle'!$H$58:$H$64,$H5)","v":0},{"$f":"COUNTIF('checklist situation actuelle'!$H$66:$H$67,$H5)","v":0},{"$f":"COUNTIF('checklist situation actuelle'!$H$69:$H$73,$H5)","v":0},{"$f":"COUNTIF('checklist situation actuelle'!$H$75:$H$77,$H5)","v":0},{"$f":"COUNTIF('checklist situation actuelle'!$H$79:$H$86,$H5)","v":0},{"$f":"COUNTIF('checklist situation actuelle'!$H$88:$H$92,$H5)","v":0},{"$f":"SUM(D100:I100)","v":0}]
[null,"?","je ne sais pas",{"$f":"COUNTIF('checklist situation actuelle'!$H$58:$H$64,$H6)","v":0},{"$f":"COUNTIF('checklist situation actuelle'!$H$66:$H$67,$H6)","v":0},{"$f":"COUNTIF('checklist situation actuelle'!$H$69:$H$73,$H6)","v":0},{"$f":"COUNTIF('checklist situation actuelle'!$H$75:$H$77,$H6)","v":0},{"$f":"COUNTIF('checklist situation actuelle'!$H$79:$H$86,$H6)","v":0},{"$f":"COUNTIF('checklist situation actuelle'!$H$88:$H$92,$H6)","v":0},{"$f":"SUM(D101:I101)","v":0}]
[null,"/","non complété",{"$f":"7-SUM(D99:D101,D103)","v":7},{"$f":"2-SUM(E99:E101,E103)","v":2},{"$f":"5-SUM(F99:F101,F103)","v":5},{"$f":"3-SUM(G99:G101,G103)","v":3},{"$f":"8-SUM(H99:H101,H103)","v":8},{"$f":"5-SUM(I99:I101,I103)","v":5},{"$f":"30-SUM(J99:J101,J103)","v":30}]
[null,"x","N/A",{"$f":"COUNTIF('checklist situation actuelle'!$H$58:$H$64,$H8)","v":0},{"$f":"COUNTIF('checklist situation actuelle'!$H$66:$H$67,$H8)","v":0},{"$f":"COUNTIF('checklist situation actuelle'!$H$69:$H$73,$H8)","v":0},{"$f":"COUNTIF('checklist situation actuelle'!$H$75:$H$77,$H8)","v":0},{"$f":"COUNTIF('checklist situation actuelle'!$H$79:$H$86,$H8)","v":0},{"$f":"COUNTIF('checklist situation actuelle'!$H$88:$H$92,$H8)","v":0},{"$f":"SUM(D103:I103)","v":0}]
[null,null,null,"vision","piétons","vélo","moto / cyclomoteur","auto","camion"]
[]
[]
[]
[]
[]
[]
[]
[]
[]
[]
[]
[]
[null,null,"Les symboles indiquent les mesures supplémentaires que votre entreprise peut encore prendre."]
[]
[null,"M1 - vision et stratégie"]
[null,{"$f":"IF('checklist situation actuelle'!H58=1,\"■\",IF('checklist situation actuelle'!H58=2,\"□\",IF('checklist situation actuelle'!H58=3,\"?\",IF('checklist situation actuelle'!H58=4,\"x\",IF('checklist situation actuelle'!H58=0,\"/\",\"!?\")))))","v":"/"},"Réalisation d’une politique ou d’un plan de sécurité routière (intégration éventuelle au Plan global de prévention)"]
[null,{"$f":"IF('checklist situation actuelle'!H59=1,\"■\",IF('checklist situation actuelle'!H59=2,\"□\",IF('checklist situation actuelle'!H59=3,\"?\",IF('checklist situation actuelle'!H59=4,\"x\",IF('checklist situation actuelle'!H59=0,\"/\",\"!?\")))))","v":"/"},"Élaboration d’une culture de la sécurité routière dans l’entreprise (p. ex. règles claires sur l’alcool, vérification éclairage vélo...)"]
[null,{"$f":"IF('checklist situation actuelle'!H60=1,\"■\",IF('checklist situation actuelle'!H60=2,\"□\",IF('checklist situation actuelle'!H60=3,\"?\",IF('checklist situation actuelle'!H60=4,\"x\",IF('checklist situation actuelle'!H60=0,\"/\",\"!?\")))))","v":"/"},"Signature de la Charte européenne de la sécurité routière"]
[null,{"$f":"IF('checklist situation actuelle'!H61=1,\"■\",IF('checklist situation actuelle'!H61=2,\"□\",IF('checklist situation actuelle'!H61=3,\"?\",IF('checklist situation actuelle'!H61=4,\"x\",IF('checklist situation actuelle'!H61=0,\"/\",\"!?\")))))","v":"/"},"Élaboration (et communication) de codes de conduite en matière de conduite sûre"]
[null,{"$f":"IF('checklist situation actuelle'!H62=1,\"■\",IF('checklist situation actuelle'!H62=2,\"□\",IF('checklist situation actuelle'!H62=3,\"?\",IF('checklist situation actuelle'!H62=4,\"x\",IF('checklist situation actuelle'!H62=0,\"/\",\"!?\")))))","v":"/"},"Éviter les déplacements si possible (téléconférence, télétravail...)"]
[null,{"$f":"IF('checklist situation actuelle'!H63=1,\"■\",IF('checklist situation actuelle'!H63=2,\"□\",IF('checklist situation actuelle'!H63=3,\"?\",IF('checklist situation actuelle'!H63=4,\"x\",IF('checklist situation actuelle'!H63=0,\"/\",\"!?\")))))","v":"/"},"Attention à la sécurité routière sur le site privé"]
[null,{"$f":"IF('checklist situation actuelle'!H64=1,\"■\",IF('checklist situation actuelle'!H64=2,\"□\",IF('checklist situation actuelle'!H64=3,\"?\",IF('checklist situation actuelle'!H64=4,\"x\",IF('checklist situation actuelle'!H64=0,\"/\",\"!?\")))))","v":"/"},"Encourager les transports en commun"]
[null,"M2 - mesures piétons"]
[null,{"$f":"IF('checklist situation actuelle'!H66=1,\"■\",IF('checklist situation actuelle'!H66=2,\"□\",IF('checklist situation actuelle'!H66=3,\"?\",IF('checklist situation actuelle'!H66=4,\"x\",IF('checklist situation actuelle'!H66=0,\"/\",\"!?\")))))","v":"/"},"Attention à sécurité routière sur les voies piétonnes (p. ex. vers l’arrêt de bus)"]
[null,{"$f":"IF('checklist situation actuelle'!H67=1,\"■\",IF('checklist situation actuelle'!H67=2,\"□\",IF('checklist situation actuelle'!H67=3,\"?\",IF('checklist situation actuelle'!H67=4,\"x\",IF('checklist situation actuelle'!H67=0,\"/\",\"!?\")))))","v":"/"},"Attention au comportement des piétons (p. ex: accent sur la visibilité, utilisation de passages pour piétons, respect du code de la route...)"]
[null,"M3 - mesures vélo"]
[null,{"$f":"IF('checklist situation actuelle'!H69=1,\"■\",IF('checklist situation actuelle'!H69=2,\"□\",IF('checklist situation actuelle'!H69=3,\"?\",IF('checklist situation actuelle'!H69=4,\"x\",IF('checklist situation actuelle'!H69=0,\"/\",\"!?\")))))","v":"/"},"Contrôle du vélo"]
[null,{"$f":"IF('checklist situation actuelle'!H70=1,\"■\",IF('checklist situation actuelle'!H70=2,\"□\",IF('checklist situation actuelle'!H70=3,\"?\",IF('checklist situation actuelle'!H70=4,\"x\",IF('checklist situation actuelle'!H70=0,\"/\",\"!?\")))))","v":"/"},"Fourniture d’équipements cyclistes (casque et accessoires fluorescents)"]
[null,{"$f":"IF('checklist situation actuelle'!H71=1,\"■\",IF('checklist situation actuelle'!H71=2,\"□\",IF('checklist situation actuelle'!H71=3,\"?\",IF('checklist situation actuelle'!H71=4,\"x\",IF('checklist situation actuelle'!H71=0,\"/\",\"!?\")))))","v":"/"},"Mise à disposition d’un parking pour vélos en bon état et sécurisé"]
[null,{"$f":"IF('checklist situation actuelle'!H72=1,\"■\",IF('checklist situation actuelle'!H72=2,\"□\",IF('checklist situation actuelle'!H72=3,\"?\",IF('checklist situation actuelle'!H72=4,\"x\",IF('checklist situation actuelle'!H72=0,\"/\",\"!?\")))))","v":"/"},"Conseils aux employés cyclistes sur les itinériares à emprunter (mettre en avant les itinéraires les plus sûrs)"]
[null,{"$f":"IF('checklist situation actuelle'!H73=1,\"■\",IF('checklist situation actuelle'!H73=2,\"□\",IF('checklist situation actuelle'!H73=3,\"?\",IF('checklist situation actuelle'!H73=4,\"x\",IF('checklist situation actuelle'!H73=0,\"/\",\"!?\")))))","v":"/"},"Organisation d’un cours pour rouler en vélo en toute sécurité"]
[null,"M4 - mesures motos et cyclomoteurs"]
[null,{"$f":"IF('checklist situation actuelle'!H75=1,\"■\",IF('checklist situation actuelle'!H75=2,\"□\",IF('checklist situation actuelle'!H75=3,\"?\",IF('checklist situation actuelle'!H75=4,\"x\",IF('checklist situation actuelle'!H75=0,\"/\",\"!?\")))))","v":"/"},"Organisation d’une formation de conduite défensive pour les motocyclistes"]
[null,{"$f":"IF('checklist situation actuelle'!H76=1,\"■\",IF('checklist situation actuelle'!H76=2,\"□\",IF('checklist situation actuelle'!H76=3,\"?\",IF('checklist situation actuelle'!H76=4,\"x\",IF('checklist situation actuelle'!H76=0,\"/\",\"!?\")))))","v":"/"},"Encourager le port du casque et l’utilisation du casque intégral (qui recouvre totalement la tête et le visage)"]
[null,{"$f":"IF('checklist situation actuelle'!H77=1,\"■\",IF('checklist situation actuelle'!H77=2,\"□\",IF('checklist situation actuelle'!H77=3,\"?\",IF('checklist situation actuelle'!H77=4,\"x\",IF('checklist situation actuelle'!H77=0,\"/\",\"!?\")))))","v":"/"},"Attention aux vêtements des motocyclistes et des cyclomotoristes"]
[null,"M5 - mesures voiture"]
[null,{"$f":"IF('checklist situation actuelle'!H79=1,\"■\",IF('checklist situation actuelle'!H79=2,\"□\",IF('checklist situation actuelle'!H79=3,\"?\",IF('checklist situation actuelle'!H79=4,\"x\",IF('checklist situation actuelle'!H79=0,\"/\",\"!?\")))))","v":"/"},"Élaboration d’un code de conduite pour les automobilistes"]
[null,{"$f":"IF('checklist situation actuelle'!H80=1,\"■\",IF('checklist situation actuelle'!H80=2,\"□\",IF('checklist situation actuelle'!H80=3,\"?\",IF('checklist situation actuelle'!H80=4,\"x\",IF('checklist situation actuelle'!H80=0,\"/\",\"!?\")))))","v":"/"},"Suivi de la conduite des nouveaux employés"]
[null,{"$f":"IF('checklist situation actuelle'!H81=1,\"■\",IF('checklist situation actuelle'!H81=2,\"□\",IF('checklist situation actuelle'!H81=3,\"?\",IF('checklist situation actuelle'!H81=4,\"x\",IF('checklist situation actuelle'!H81=0,\"/\",\"!?\")))))","v":"/"},"Décourager les appels téléphoniques au volant (même avec un kit mains libres) Fournir des kits mains libres dans les voitures de société et de service"]
[null,{"$f":"IF('checklist situation actuelle'!H82=1,\"■\",IF('checklist situation actuelle'!H82=2,\"□\",IF('checklist situation actuelle'!H82=3,\"?\",IF('checklist situation actuelle'!H82=4,\"x\",IF('checklist situation actuelle'!H82=0,\"/\",\"!?\")))))","v":"/"},"Responsabilisation de collaborateurs qui ont commis une infraction routière"]
[null,{"$f":"IF('checklist situation actuelle'!H83=1,\"■\",IF('checklist situation actuelle'!H83=2,\"□\",IF('checklist situation actuelle'!H83=3,\"?\",IF('checklist situation actuelle'!H83=4,\"x\",IF('checklist situation actuelle'!H83=0,\"/\",\"!?\")))))","v":"/"},"Attention à la conduite sous influence lors d’événements d’entreprise"]
[null,{"$f":"IF('checklist situation actuelle'!H84=1,\"■\",IF('checklist situation actuelle'!H84=2,\"□\",IF('checklist situation actuelle'!H84=3,\"?\",IF('checklist situation actuelle'!H84=4,\"x\",IF('checklist situation actuelle'!H84=0,\"/\",\"!?\")))))","v":"/"},"Attention à la sécurité routière dans la gestion de flotte (p. ex. nouvelles technologies: Adaptation intelligente de la vitesse (ISA), entretien régulier, véhicules équipés de parechocs qui atténuent les chocs avec les piétons, pneus hiver...)"]
[null,{"$f":"IF('checklist situation actuelle'!H85=1,\"■\",IF('checklist situation actuelle'!H85=2,\"□\",IF('checklist situation actuelle'!H85=3,\"?\",IF('checklist situation actuelle'!H85=4,\"x\",IF('checklist situation actuelle'!H85=0,\"/\",\"!?\")))))","v":"/"},"Organisation de cours de conduite défensive pour les automobilistes"]
[null,{"$f":"IF('checklist situation actuelle'!H86=1,\"■\",IF('checklist situation actuelle'!H86=2,\"□\",IF('checklist situation actuelle'!H86=3,\"?\",IF('checklist situation actuelle'!H86=4,\"x\",IF('checklist situation actuelle'!H86=0,\"/\",\"!?\")))))","v":"/"},"Proposer un logement au lieu d’imposer aux employés de faire un long trajet à une heure tardive pour rentrer chez eux"]
[null,"M6 - mesures camion"]
[null,{"$f":"IF('checklist situation actuelle'!H88=1,\"■\",IF('checklist situation actuelle'!H88=2,\"□\",IF('checklist situation actuelle'!H88=3,\"?\",IF('checklist situation actuelle'!H88=4,\"x\",IF('checklist situation actuelle'!H88=0,\"/\",\"!?\")))))","v":"/"},"Élaboration un code de conduite pour les chauffeurs de camion"]
[null,{"$f":"IF('checklist situation actuelle'!H89=1,\"■\",IF('checklist situation actuelle'!H89=2,\"□\",IF('checklist situation actuelle'!H89=3,\"?\",IF('checklist situation actuelle'!H89=4,\"x\",IF('checklist situation actuelle'!H89=0,\"/\",\"!?\")))))","v":"/"},"Équiper les camions des dernières avancées technologiques qui améliorent la sécurité"]
[null,{"$f":"IF('checklist situation actuelle'!H90=1,\"■\",IF('checklist situation actuelle'!H90=2,\"□\",IF('checklist situation actuelle'!H90=3,\"?\",IF('checklist situation actuelle'!H90=4,\"x\",IF('checklist situation actuelle'!H90=0,\"/\",\"!?\")))))","v":"/"},"Ne pas surcharger la planification des trajets"]
[null,{"$f":"IF('checklist situation actuelle'!H91=1,\"■\",IF('checklist situation actuelle'!H91=2,\"□\",IF('checklist situation actuelle'!H91=3,\"?\",IF('checklist situation actuelle'!H91=4,\"x\",IF('checklist situation actuelle'!H91=0,\"/\",\"!?\")))))","v":"/"},"Signature de la Charte de sécurité des poids lourds sur www.truckveilig.be"]
[null,{"$f":"IF('checklist situation actuelle'!H92=1,\"■\",IF('checklist situation actuelle'!H92=2,\"□\",IF('checklist situation actuelle'!H92=3,\"?\",IF('checklist situation actuelle'!H92=4,\"x\",IF('checklist situation actuelle'!H92=0,\"/\",\"!?\")))))","v":"/"},"Encourager et faciliter le respect des temps de conduite et de repos"]